bitfinex-derivatives/quotes_SOLF0:USTF0_20250228
["timestamp","ask_amount","ask_price","bid_price","bid_amount"]
[1740721513636,0.05928099,127.32,127.26,3.9019]
[1740721513820,190.0,127.38,127.26,3.9019]
[1740721514026,204.28,127.45,127.35,7.8596]
[1740721514327,190.0,127.44,127.35,7.8596]
[1740721514629,7.8552,127.43,127.29,14.28]
[1740721514831,7.8552,127.43,127.3,1.42623945]
[1740721515026,190.0,127.44,127.29,14.28]
[1740721515027,7.8569,127.41,127.29,14.28]
[1740721515327,0.05742313,127.37,127.35,0.05155608]
[1740721515630,7.8582,127.38,127.26,5.47348573]
[1740721515829,0.05094573,127.37,127.35,0.05375511]
[1740721516025,190.0,127.36,127.25,3.7934]
[1740721516224,14.28,127.35,127.21,7.5791]
[1740721516425,14.28,127.35,127.21,3.7934]
[1740721516633,7.8657,127.26,127.2,130.48298299]
[1740721516834,14.28,127.28,127.2,130.48298299]
[1740721517134,0.05970448,127.25,127.2,130.48298299]
[1740721517322,7.8669,127.24,127.2,130.48298299]
[1740721517523,0.05970448,127.25,127.2,130.48298299]
[1740721518128,0.05970448,127.25,127.19,213.43960366]
[1740721518129,0.05970448,127.25,127.21,7.8686]
[1740721518332,0.05970448,127.25,127.19,130.48298299]
[1740721518733,0.05970448,127.25,127.23,7.8668]
[1740721518928,0.05970448,127.25,127.19,130.48298299]
[1740721519130,0.05970448,127.25,127.19,134.25848299]
[1740721519331,213.5,127.37,127.19,134.25848299]
[1740721519627,213.5,127.37,127.2,1.42730984]
[1740721519827,213.5,127.37,127.21,1.57220344]
[1740721520031,213.5,127.37,127.22,3.972]
[1740721520235,213.5,127.37,127.23,18.3568]
[1740721520432,213.62,127.45,127.23,18.3568]
[1740721520640,14.28,127.44,127.29,0.05932827]
[1740721521135,14.28,127.44,127.23,18.3568]
[1740721521339,14.28,127.44,127.24,1.42680557]
[1740721521733,14.28,127.44,127.23,18.3568]
[1740721522235,0.0555389,127.35,127.33,0.05995437]
[1740721522436,213.62,127.45,127.33,0.05995437]
[1740721522630,213.62,127.45,127.29,7.8637]
[1740721522835,213.62,127.45,127.24,1.42686747]
[1740721522836,213.62,127.45,127.23,18.3568]
[1740721523036,213.62,127.45,127.24,1.42685941]
[1740721523236,213.62,127.45,127.23,18.3568]
[1740721523435,213.62,127.45,127.24,2.99861264]
[1740721523736,0.05817201,127.35,127.33,0.0559139]
[1740721524232,0.05233071,127.35,127.33,0.05197973]
[1740721525339,213.62,127.45,127.33,0.05197973]
[1740721525741,0.1229,127.5,127.31,7.6787]
[1740721525941,0.1229,127.5,127.32,1.4258757]
[1740721526240,14.28,127.53,127.33,1.42584173]
[1740721526443,0.06023822,127.42,127.4,0.05922438]
[1740721526638,14.28,127.53,127.4,0.05922438]
[1740721526941,7.8509,127.5,127.33,1.42558669]
[1740721527138,7.8509,127.5,127.34,1.42558669]
[1740721527336,7.8503,127.51,127.41,7.8558]
[1740721527543,213.7429,127.55,127.37,14.28]
[1740721527841,213.7429,127.55,127.43,0.05609372]
[1740721527842,0.05884892,127.46,127.43,0.05609372]
[1740721528041,14.28,127.57,127.43,0.05609372]
[1740721528238,14.28,127.57,127.39,1.42517323]
[1740721528542,0.1752,127.61,127.39,214.98517323]
[1740721528738,213.62,127.63,127.4,2.99503194]
[1740721528939,213.62,127.63,127.53,7.8489]
[1740721529333,0.06046631,127.59,127.57,0.05131932]
[1740721532940,0.06046631,127.59,127.57,7.89771932]
[1740721533145,0.06046631,127.59,127.57,0.05131932]
[1740721535047,0.06046631,127.59,127.38,18.94858472]
[1740721535351,0.06046631,127.59,127.42,12.99783699]
[1740721535646,7.8475,127.56,127.49,7.8513]
[1740721535843,14.26,127.64,127.42,11.5734]
[1740721536149,0.05486867,127.54,127.51,0.05495671]
[1740721536447,0.05486867,127.54,127.43,1.56948913]
[1740721536648,7.8503,127.51,127.45,7.8536]
[1740721536848,14.26,127.57,127.42,11.5734]
[1740721537449,14.26,127.57,127.36,85.6712927]
[1740721537746,1.44328249,127.56,127.39,7.8571]
[1740721537945,0.05631365,127.51,127.48,0.0583468]
[1740721538148,7.8527,127.47,127.37,7.9439]
[1740721538455,14.26,127.5,127.37,4.0955]
[1740721538643,14.26,127.5,127.36,3.812]
[1740721538849,213.4,127.49,127.33,3.8484]
[1740721539551,0.054936,127.42,127.4,0.0518015]
[1740721539948,14.26,127.43,127.33,3.8484]
[1740721540350,0.05258916,127.42,127.4,0.0527739]
[1740721540545,190.0,127.46,127.33,3.8484]
[1740721541052,0.05547319,127.42,127.4,0.05070217]
[1740721544851,7.91167319,127.42,127.4,0.05070217]
[1740721545157,0.05547319,127.42,127.4,0.05070217]
[1740721546156,7.8563,127.41,127.4,0.05070217]
[1740721546353,0.05547319,127.42,127.4,0.05070217]
[1740721546953,0.05547319,127.42,127.33,3.8484]
[1740721547356,190.0,127.46,127.33,3.8484]
[1740721548258,0.05580567,127.41,127.38,0.05154045]
[1740721548656,0.05580567,127.41,127.33,3.8484]
[1740721548855,0.05580567,127.41,127.38,0.05583007]
[1740721549057,190.0,127.47,127.38,0.05583007]
[1740721549362,190.0,127.47,127.33,3.8484]
[1740721549553,0.0558373,127.44,127.41,0.05121978]
[1740721549754,190.0,127.46,127.41,0.05121978]
[1740721549963,0.05690346,127.44,127.41,0.05121978]
[1740721551662,7.8552,127.43,127.41,0.05121978]
[1740721552066,0.05690346,127.44,127.41,0.05121978]
[1740721552067,7.8557,127.42,127.41,0.05121978]
[1740721552561,7.8568,127.41,127.35,7.8598]
[1740721552760,190.0,127.43,127.35,7.8598]
[1740721553156,7.8574,127.4,127.35,7.8598]
[1740721553557,190.0,127.43,127.36,0.05313599]
[1740721553558,0.05913408,127.39,127.36,0.05313599]
[1740721554256,0.05913408,127.39,127.27,3.7856]
[1740721554464,7.861,127.34,127.27,3.7856]
[1740721554960,7.861,127.34,127.29,7.8633]
[1740721555352,0.05832046,127.33,127.3,7.89055661]
[1740721556062,0.05832046,127.33,127.3,0.02745661]
[1740721556763,0.05832046,127.33,127.31,7.8625]
[1740721557160,0.05832046,127.33,127.32,7.8619]
[1740721557364,0.05832046,127.33,127.3,0.02745661]
[1740721557663,0.05832046,127.33,127.31,7.8625]
[1740721557864,0.05832046,127.33,127.3,0.02745661]
[1740721558363,14.28,127.44,127.3,0.02745661]
[1740721558561,204.28,127.44,127.3,0.02745661]
[1740721558865,7.8565,127.41,127.28,14.28]
[1740721559256,204.28,127.44,127.28,14.28]
[1740721559257,14.28,127.44,127.28,14.28]
[1740721559463,14.28,127.46,127.35,7.8595]
[1740721559758,14.28,127.46,127.28,14.28]
[1740721560065,7.91151601,127.42,127.39,0.05648815]
[1740721560258,14.28,127.46,127.28,14.28]
[1740721560459,7.8571,127.4,127.39,0.05935418]
[1740721560660,14.28,127.46,127.28,14.28]
[1740721560855,0.05263785,127.41,127.38,0.05850059]
[1740721561057,0.05263785,127.41,127.28,14.28]
[1740721561257,14.28,127.46,127.27,3.7856]
[1740721561460,1.44454434,127.45,127.3,7.8629]
[1740721561667,1.44454434,127.45,127.27,3.7856]
[1740721561965,7.8613,127.33,127.29,7.8635]
[1740721562364,0.05915336,127.32,127.3,0.02727648]
[1740721563159,0.05915336,127.32,127.31,7.8625]
[1740721563358,0.05915336,127.32,127.3,0.02727648]
[1740721563865,0.05915336,127.32,127.31,7.8625]
[1740721564067,326.0,127.44,127.3,3.94727648]
[1740721564264,326.0,127.44,127.3,0.02727648]
[1740721564265,14.28,127.44,127.3,0.02727648]
[1740721564468,7.8562,127.42,127.35,7.8595]
[1740721564671,14.28,127.44,127.31,3.9123]
[1740721565273,0.06047822,127.39,127.36,0.0539201]
[1740721565573,0.06047822,127.39,127.31,3.9123]
[1740721565770,0.06047822,127.39,127.36,0.05773645]
[1740721565976,14.28,127.48,127.36,0.05773645]
[1740721566176,0.05493284,127.39,127.37,7.8586]
[1740721566378,14.28,127.48,127.31,3.9123]
[1740721566676,0.05264682,127.39,127.37,0.05300113]
[1740721567171,0.05614728,127.39,127.38,7.8577]
[1740721567370,0.05614728,127.39,127.38,11.7777]
[1740721568177,213.4,127.49,127.38,3.92]
[1740721568374,255.8343176,127.57,127.39,4.1273]
[1740721568570,14.26,127.56,127.39,4.1273]
[1740721568768,14.26,127.56,127.43,7.8545]
[1740721568970,14.26,127.56,127.39,4.1273]
[1740721569172,14.26,127.56,127.39,7.8575]
[1740721569379,14.26,127.56,127.46,0.0511418]
[1740721569380,0.05677307,127.49,127.46,0.0511418]
[1740721569777,7.852,127.48,127.36,4.0266]
[1740721569974,0.05367377,127.49,127.46,0.05748324]
[1740721570170,0.05367377,127.49,127.36,4.0266]
[1740721570372,0.0985,127.54,127.36,4.0266]
[1740721570577,0.04979437,127.44,127.41,0.05704958]
[1740721570878,14.26,127.48,127.36,4.0266]
[1740721571080,0.05702994,127.44,127.41,0.0520489]
[1740721571584,0.05702994,127.44,127.36,4.0266]
[1740721571881,7.857,127.4,127.31,4.1268]
[1740721572086,7.857,127.4,127.31,8.0684]
[1740721572280,7.8596,127.36,127.31,3.9416]
[1740721572478,14.26,127.4,127.31,3.9416]
[1740721572681,14.26,127.4,127.3,85.6712927]
[1740721572981,0.05064208,127.37,127.34,0.04955871]
[1740721573380,0.05064208,127.37,127.3,85.6712927]
[1740721574479,0.05064208,127.37,127.32,0.04096951]
[1740721576179,0.05064208,127.37,127.26,7.7211]
[1740721576180,14.31064208,127.37,127.26,7.7211]
[1740721576485,14.26,127.37,127.26,7.7211]
[1740721577280,0.05386817,127.33,127.27,7.865]
[1740721577479,0.05386817,127.33,127.26,7.7211]
[1740721577684,0.05386817,127.33,127.22,85.6712927]
[1740721577685,0.05386817,127.33,127.22,89.5020927]
[1740721577884,190.0,127.32,127.22,89.5020927]
[1740721578079,0.0572953,127.29,127.22,3.8308]
[1740721579288,0.0572953,127.29,127.22,11.6987]
[1740721579481,0.0572953,127.29,127.22,3.8308]
[1740721579989,7.8644,127.28,127.22,3.8308]
[1740721580191,190.0,127.32,127.22,3.8308]
[1740721580487,213.64,127.35,127.22,3.8308]
[1740721580488,0.05810536,127.26,127.22,3.8308]
[1740721580686,190.0,127.31,127.22,3.8308]
[1740721580887,0.05362397,127.25,127.22,3.8308]
[1740721581185,7.8642,127.29,127.22,3.8308]
[1740721581387,0.05055533,127.25,127.22,3.8308]
[1740721582189,0.05055533,127.25,127.23,7.8674]
[1740721582586,0.05055533,127.25,127.22,3.8308]
[1740721583186,0.05055533,127.25,127.22,11.6984]
[1740721583494,0.05055533,127.25,127.22,3.8308]
[1740721583991,213.64,127.35,127.22,7.80135533]
[1740721584191,213.64,127.35,127.22,3.8308]
[1740721584487,7.8635,127.3,127.22,3.8308]
[1740721584990,0.0552716,127.27,127.25,0.05055533]
[1740721585183,7.8642,127.29,127.22,3.8308]
[1740721585490,0.04980915,127.26,127.23,0.05055533]
[1740721585786,7.8629,127.31,127.22,11.6984]
[1740721585989,0.05377077,127.26,127.23,0.05055533]
[1740721586190,0.05377077,127.26,127.22,3.8308]
[1740721586191,212.1417,127.33,127.22,7.7508]
[1740721586391,212.1417,127.33,127.22,3.8308]
[1740721586589,204.28,127.33,127.23,7.867]
[1740721586790,204.28,127.33,127.22,3.8308]
[1740721587286,204.28,127.33,127.26,0.05206189]
[1740721587494,0.0569777,127.29,127.26,0.05206189]
[1740721587787,190.0,127.38,127.26,8.11356189]
[1740721587994,193.7773,127.38,127.26,4.1415]
[1740721588185,191.44522249,127.37,127.14,195.0]
[1740721588384,7.8664,127.25,127.15,3.8418]
[1740721588596,14.28,127.26,127.15,3.8418]
[1740721588895,0.05798683,127.21,127.19,0.05670762]
[1740721589095,0.05798683,127.21,127.09,85.6712927]
[1740721589393,193.7773,127.25,127.15,85.6712927]
[1740721589589,190.0,127.24,127.15,85.6712927]
[1740721589994,7.8694,127.2,127.15,85.6712927]
[1740721590191,14.28,127.19,127.15,85.6712927]
[1740721590895,14.28,127.19,127.15,81.4172927]
[1740721591087,7.8718,127.16,127.15,44.04552427]
[1740721591292,18.22,127.19,127.15,5.14772427]
[1740721591591,0.05504739,127.18,127.16,0.05259191]
[1740721591791,1.50016389,127.18,127.13,130.48298299]
[1740721592195,5.44016389,127.18,127.13,130.48298299]
[1740721592494,1.44499264,127.17,127.0,134.52668299]
[1740721592696,7.8724,127.16,127.01,7.8811]
[1740721592997,0.05077458,127.1,127.01,7.8811]
[1740721593196,14.33077458,127.1,127.01,5.14781618]
[1740721593489,14.33077458,127.1,127.0,134.52668299]
[1740721593490,0.05681747,127.07,127.0,134.52668299]
[1740721593694,0.05681747,127.07,127.01,7.8805]
[1740721593892,0.05681747,127.07,127.0,139.67449917]
[1740721594196,0.05681747,127.07,127.02,7.8803]
[1740721594498,0.05681747,127.07,127.0,139.67449917]
[1740721594992,0.05681747,127.07,127.0,134.52668299]
[1740721595194,0.05681747,127.07,127.0,139.67449917]
[1740721595997,0.05681747,127.07,127.0,135.63079917]
[1740721596399,0.05681747,127.07,127.0,5.14781618]
[1740721597092,0.05681747,127.07,126.94,8.0479]
[1740721597289,0.05681747,127.07,127.02,7.8804]
[1740721597497,14.28,127.08,127.02,7.8804]
[1740721597793,14.28,127.08,126.94,8.0479]
[1740721597794,0.05253827,127.06,126.94,8.0479]
[1740721598191,14.28,127.08,126.95,1.43012494]
[1740721598595,14.28,127.08,127.0,0.0528]
[1740721598995,14.28,127.08,127.0,5.14775134]
[1740721599196,14.28,127.08,127.0,13.02885134]
[1740721599496,14.28,127.08,126.94,8.0479]
[1740721599688,0.0566375,127.05,127.03,0.05286484]
[1740721599887,14.28,127.08,126.95,1.43022405]
[1740721600095,0.06027033,127.05,127.03,0.05286484]
[1740721600291,0.06027033,127.05,126.95,1.43014532]
[1740721600494,14.28,127.13,126.96,14.28]
[1740721601499,0.05487882,127.06,126.96,19.42775134]
[1740721601695,14.28,127.13,126.96,19.42775134]
[1740721601993,4.25e-06,127.02,126.96,19.42775134]
[1740721602198,14.28,127.13,126.96,14.28]
[1740721603198,0.05937173,127.06,127.03,0.054]
[1740721603395,7.173e-05,127.06,127.03,0.054]
[1740721603595,14.28,127.13,126.96,14.28]
[1740721603801,14.28,127.13,126.97,1.42990737]
[1740721603992,214.02,127.17,126.97,1.42990737]
[1740721604198,14.3,127.18,126.98,1.57505118]
[1740721604400,0.71989214,127.22,126.98,1.57505118]
[1740721604401,0.71989214,127.22,126.99,24.96990737]
[1740721604702,214.1,127.23,127.16,7.8713]
[1740721604893,214.1,127.23,127.07,0.05805218]
[1740721604894,228.4,127.23,127.07,0.05805218]
[1740721605200,228.4,127.23,127.19,7.8698]
[1740721605399,14.3,127.23,127.08,3.8298]
[1740721605595,14.3,127.23,127.09,1.42848364]
[1740721605797,14.3,127.23,127.21,7.8686]
[1740721606189,14.35088784,127.23,127.21,7.92290268]
[1740721606596,14.35088784,127.23,127.21,0.05430268]
[1740721611202,0.05088784,127.23,127.21,0.05430268]
[1740721615503,0.05088784,127.23,127.21,5.20205402]
[1740721617307,0.05088784,127.23,127.21,0.05430268]
[1740721618406,0.05088784,127.23,127.21,5.20205402]
[1740721619907,0.05088784,127.23,127.21,7.92290268]
[1740721620102,0.05088784,127.23,127.21,0.05430268]
[1740721620505,14.28,127.28,127.14,0.61648199]
[1740721621609,14.28,127.28,127.19,7.8696]
[1740721621908,14.28,127.28,127.14,0.61648199]
[1740721621909,14.28,127.28,127.2,0.05540844]
[1740721622097,7.8674,127.23,127.14,5.76423333]
[1740721622301,14.28,127.28,127.23,0.05412391]
[1740721622500,0.05748043,127.2,127.14,0.61648199]
[1740721622709,316.17076284,127.31,127.24,0.05827788]
[1740721622903,10.48213156,127.37,127.15,37.82]
[1740721623099,7.8596,127.36,127.17,213.94]
[1740721623301,10.48213156,127.37,127.18,3.0004196]
[1740721623505,10.48213156,127.37,127.18,1.5725743]
[1740721623707,34.02213156,127.37,127.18,6.72032564]
[1740721624001,0.05459268,127.29,127.26,0.05112429]
[1740721624209,7.8679,127.23,127.14,0.61648199]
[1740721624509,190.0,127.27,127.14,5.76423333]
[1740721624808,18.2632,127.28,127.14,5.76423333]
[1740721625104,191.4419551,127.27,127.14,5.14775134]
[1740721625304,0.05210986,127.22,127.2,5.584e-05]
[1740721625511,204.28,127.21,127.2,5.584e-05]
[1740721625706,7.8735,127.14,127.09,3.8403]
[1740721626008,193.8955,127.2,127.09,3.8403]
[1740721626310,3.8955,127.2,127.09,3.8403]
[1740721626510,0.05102978,127.16,127.13,0.05907488]
[1740721627007,0.05102978,127.16,127.13,5.20682622]
[1740721627207,0.05102978,127.16,127.13,0.05907488]
[1740721628305,190.0,127.15,127.03,3.8823]
[1740721628615,204.28,127.14,127.02,5.14775134]
[1740721628806,1.44047967,127.13,126.94,12.1635]
[1740721629006,1.44047967,127.13,126.94,25.19665134]
[1740721629207,3.8627,127.12,126.94,25.19665134]
[1740721629407,3.8627,127.12,127.02,0.05194268]
[1740721629408,0.06055119,127.05,127.02,0.05194268]
[1740721629708,14.28,127.07,126.94,12.1635]
[1740721629904,14.28,127.07,126.94,17.31125134]
[1740721630106,0.05793565,127.05,127.02,0.05074915]
[1740721630306,14.28,127.07,127.02,5.14775134]
[1740721630610,0.05264839,127.05,127.02,5.19969402]
[1740721631611,0.05264839,127.05,127.02,0.05194268]
[1740721632408,0.05264839,127.05,127.02,5.19969402]
[1740721632607,0.05264839,127.05,127.02,0.05194268]
[1740721633904,0.05264839,127.05,126.94,12.1635]
[1740721634101,190.0,127.04,126.94,17.31125134]
[1740721634509,7.8804,127.03,126.94,17.31125134]
[1740721634710,190.0,127.04,126.94,17.31125134]
[1740721635106,0.05264984,127.0,126.94,17.31125134]
[1740721636712,14.33264984,127.0,126.94,17.31125134]
[1740721637211,14.33264984,127.0,126.94,5.14775134]
[1740721638211,14.33264984,127.0,126.95,7.8843]
[1740721638411,14.33264984,127.0,126.88,11.9979]
[1740721638412,14.28,127.0,126.88,11.9979]
[1740721639114,0.05104467,126.95,126.88,11.9979]
[1740721639315,14.28,127.0,126.88,11.9979]
[1740721639627,214.04,127.08,126.89,3.00719968]
[1740721639814,214.04,127.08,126.9,1.43103135]
[1740721640015,214.04,127.08,126.91,14.28]
[1740721640405,0.05999187,127.01,126.98,0.05104467]
[1740721640613,214.04,127.08,126.98,5.14775134]
[1740721640914,0.05096008,127.01,126.98,5.19879601]
[1740721641114,214.04,127.08,126.98,5.14775134]
[1740721641317,214.04,127.08,127.01,7.8806]
[1740721641511,0.0541568,127.04,126.99,7.8971]
[1740721641714,0.0541568,127.04,127.03,0.05104467]
[1740721641915,214.04,127.08,127.03,0.05104467]
[1740721642118,0.05772714,127.05,126.99,7.8971]
[1740721642715,0.05772714,127.05,127.01,0.05104467]
[1740721643119,0.05772714,127.05,127.01,7.93194467]
[1740721643518,0.05772714,127.05,127.01,5.19879601]
[1740721644012,0.05772714,127.05,127.01,0.05104467]
[1740721644220,0.05772714,127.05,126.93,1.43041763]
[1740721644418,214.04,127.08,126.93,198.7705]
[1740721644611,214.04,127.08,126.94,1.43041515]
[1740721645013,214.04,127.08,126.94,201.57816649]
[1740721645221,214.04,127.08,126.94,5.14775134]
[1740721645415,0.0517546,127.02,126.94,5.14775134]
[1740721645616,214.04,127.08,126.97,7.8831]
[1740721645811,0.05051187,126.99,126.89,196.57616833]
[1740721646117,214.04,127.08,126.99,7.8819]
[1740721646320,214.04,127.08,127.0,8.1953]
[1740721646718,214.04,127.08,127.0,5.14775134]
[1740721646922,214.04,127.08,126.9,7.9132]
[1740721647112,7.8792,127.04,127.03,0.05031302]
[1740721647316,190.0,127.04,126.9,7.9132]
[1740721647522,190.0,127.04,126.91,4.049]
[1740721647719,190.0,127.04,126.91,9.19675134]
[1740721647915,190.0,127.04,126.91,4.049]
[1740721648221,190.0,127.04,126.91,9.19675134]
[1740721648422,0.05679127,126.99,126.91,9.19675134]
[1740721648622,14.33679127,126.99,126.91,9.19675134]
[1740721648822,22.1624,126.99,126.91,9.19675134]
[1740721649016,0.05856138,126.96,126.91,9.19675134]
[1740721649813,0.05856138,126.96,126.91,5.14775134]
[1740721650222,0.05856138,126.96,126.9,7.8873]
[1740721650522,3.4426,127.02,126.84,14.28]
[1740721650722,0.05830887,126.94,126.85,1.43138506]
[1740721650921,17.7226,127.02,126.85,1.43138506]
[1740721651421,25.6036,127.02,126.85,1.43138506]
[1740721651720,17.7226,127.02,126.85,1.43138506]
[1740721651921,7.8816,127.01,126.9,7.8878]
[1740721652118,7.8816,127.01,126.91,11.8259]
[1740721652321,0.05558846,126.97,126.94,0.05912606]
[1740721652518,0.05558846,126.97,126.91,9.05305134]
[1740721652713,0.05558846,126.97,126.94,0.05051117]
[1740721654524,7.93968846,126.97,126.94,0.05051117]
[1740721654718,0.05558846,126.97,126.94,0.05051117]
[1740721655123,7.8844,126.96,126.94,0.05051117]
[1740721655623,214.04,127.08,126.94,0.05051117]
[1740721655819,14.3,127.06,126.92,4.0506]
[1740721656218,7.8788,127.05,126.92,4.0506]
[1740721656821,22.1784,127.06,126.92,199.0506]
[1740721657022,0.05241988,127.0,126.97,0.05134768]
[1740721657222,42.2143176,127.12,126.97,0.05134768]
[1740721657424,110.10199829,127.11,126.93,1.43063666]
[1740721657929,42.2143176,127.12,127.03,7.8796]
[1740721658130,42.2143176,127.12,127.04,8.0398]
[1740721658332,0.05610018,127.09,127.06,0.05618315]
[1740721658628,37.06656626,127.12,127.06,0.05618315]
[1740721659328,30.79876626,127.12,127.07,7.8773]
[1740721659529,84.35068429,127.13,127.07,7.8773]
[1740721659729,10.60739118,127.22,127.08,7.8766]
[1740721659923,0.05295629,127.11,127.06,14.28]
[1740721660226,10.60739118,127.22,127.09,0.05177134]
[1740721660731,7.8742,127.13,127.04,8.0398]
[1740721660935,204.28,127.19,127.04,8.0398]
[1740721661128,14.28,127.19,127.04,8.0398]
[1740721661329,0.05976747,127.13,127.1,0.05950239]
[1740721661830,0.05821916,127.13,127.1,0.05759705]
[1740721662433,7.8743,127.12,127.1,0.05759705]
[1740721663030,7.8742,127.12,127.1,0.05759705]
[1740721663636,0.05821916,127.13,127.1,0.05759705]
[1740721664230,7.8744,127.12,127.1,0.05759705]
[1740721664435,0.05821916,127.13,127.1,0.05759705]
[1740721664833,7.8749,127.11,127.1,0.05759705]
[1740721665131,14.28,127.12,127.0,3.9938]
[1740721665330,4.0623,127.1,126.97,7.8829]
[1740721665536,4.0623,127.1,126.96,4.0893]
[1740721666334,0.05068876,127.04,127.02,0.05423274]
[1740721666536,0.05068876,127.04,127.03,7.8798]
[1740721666736,4.0623,127.1,127.03,7.8798]
[1740721666936,4.0623,127.1,127.03,3.7741]
[1740721667132,0.05294476,127.05,127.03,11.6534]
[1740721667329,3.7593,127.11,127.03,3.7741]
[1740721667533,14.28,127.12,127.03,3.7741]
[1740721667738,4.0623,127.14,127.03,3.7741]
[1740721668239,7.8751,127.11,127.04,7.8788]
[1740721668434,4.0623,127.14,127.03,3.7741]
[1740721668640,0.0599842,127.1,127.07,0.05231303]
[1740721669436,7.8767,127.08,127.07,0.05231303]
[1740721671241,0.0599842,127.1,127.07,0.05231303]
[1740721672943,7.8767,127.08,127.07,0.05231303]
[1740721673943,3.9090842,127.1,126.94,8.038]
[1740721674142,4.145,127.07,126.94,94.01213961]
[1740721674341,7.8826,126.99,126.94,94.01213961]
[1740721674539,14.28,127.05,126.94,94.01213961]
[1740721674835,3.7648,127.04,126.94,94.01213961]
[1740721675039,0.05292423,127.01,126.98,0.06013314]
[1740721676243,14.28,127.05,126.98,0.06013314]
[1740721676644,7.8819,127.0,126.98,0.06013314]
[1740721677144,14.28,127.05,126.98,0.06013314]
[1740721677547,0.05075667,127.0,126.98,0.06013314]
[1740721677840,0.05298397,127.0,126.98,0.06013314]
[1740721678438,7.88,127.03,126.98,0.06013314]
[1740721678439,4.145,127.07,126.98,0.06013314]
[1740721678645,4.145,127.07,126.94,8.038]
[1740721678846,7.8793,127.04,126.98,7.8824]
[1740721679045,4.145,127.07,126.94,8.038]
[1740721679241,3.7648,127.09,126.95,1.43039046]
[1740721679841,0.04968253,127.03,127.02,7.8804]
[1740721680042,3.8491,127.1,127.01,0.05488511]
[1740721680238,3.8491,127.1,126.94,8.038]
[1740721680439,7.8808,127.02,126.94,8.038]
[1740721680748,3.8491,127.1,126.94,8.038]
[1740721681249,0.0572189,127.03,127.01,0.05489852]
[1740721681547,3.8491,127.1,126.94,8.038]
[1740721681748,0.0537703,127.03,126.88,14.28]
[1740721681949,7.8829,126.99,126.93,7.8859]
[1740721682143,14.28,127.04,126.88,18.2368]
[1740721682341,14.28,127.09,126.89,1.4307471]
[1740721682551,7.8794,127.04,126.89,1.4307471]
[1740721682750,14.28,127.09,126.89,1.4307471]
[1740721683048,14.28,127.09,126.95,0.05674769]
[1740721683245,14.28,127.09,126.96,14.28]
[1740721683448,14.28,127.09,126.97,4.0458]
[1740721683648,7.8793,127.04,126.99,7.8822]
[1740721683850,14.28,127.09,126.97,8.0934]
[1740721684150,7.8802,127.03,127.02,0.05636124]
[1740721684848,0.0596429,127.04,127.02,0.05636124]
[1740721685248,3.8491,127.1,127.02,0.05636124]
[1740721685450,3.8491,127.1,126.98,4.0577]
[1740721685751,0.05577817,127.07,126.97,4.0476]
[1740721686049,7.8816,127.01,126.97,4.0476]
[1740721686441,7.8815,127.01,126.97,4.0476]
[1740721686644,7.5669,127.06,126.95,7.8843]
[1740721687049,7.8818,127.0,126.99,0.05722592]
[1740721687848,0.04986328,127.02,126.99,0.05722592]
[1740721688053,7.8813,127.01,126.99,0.05722592]
[1740721688354,0.04986328,127.02,126.99,0.05722592]
[1740721688553,0.04986328,127.02,126.92,4.0852]
[1740721688743,7.8839,126.97,126.92,4.0852]
[1740721689444,4.0891,127.01,126.86,280.97413961]
[1740721689643,4.0891,127.01,126.92,0.04956786]
[1740721689853,14.28,127.0,126.88,7.889]
[1740721690053,14.28,127.0,126.87,3.9602]
[1740721690352,3.8773,126.99,126.93,7.8859]
[1740721690547,0.05980854,126.95,126.92,0.05398666]
[1740721690754,4.0891,127.01,126.89,14.28]
[1740721690961,3.8773,127.04,126.97,7.8834]
[1740721691160,11.757,127.04,126.97,7.8834]
[1740721691357,3.8773,127.04,126.89,209.28]
[1740721691660,4.0891,127.03,126.94,7.8851]
[1740721691863,4.0891,127.03,126.89,209.28]
[1740721691864,11.9691,127.03,126.89,209.28]
[1740721692061,0.05934275,127.0,126.97,0.05299672]